lending/lending_fUSD_20260411
["ID","MTS","AMOUNT","RATE_DAILY","PERIOD"]
[420236330,1775838635844,-500.0,0.00012663,2]
[420236331,1775838635854,-312.29920745,0.00012663,2]
[420236332,1775838635864,-500.0,0.00012663,2]
[420236333,1775838635877,-500.0,0.00012663,2]
[420236334,1775838635891,-500.0,0.00012663,2]
[420236335,1775838635900,-500.0,0.00012663,2]
[420236336,1775838635911,-500.0,0.00012663,2]
[420236337,1775838635922,-500.0,0.00012663,2]
[420236338,1775838635940,-500.0,0.00012663,2]
[420236339,1775838635952,-338.49638206,0.00012663,2]
[420236340,1775838635961,-500.0,0.00012663,2]
[420236341,1775838635985,-500.0,0.00012664,2]
[420236342,1775838635998,-500.0,0.00012664,2]
[420236343,1775838636021,-500.0,0.00012664,2]
[420236344,1775838636031,-500.0,0.00012664,2]
[420236345,1775838636052,-500.0,0.00012664,2]
[420236346,1775838636076,-500.0,0.00012664,2]
[420236347,1775838636098,-500.0,0.00012664,2]
[420236348,1775838636145,-500.0,0.00012664,2]
[420236349,1775838636211,-500.0,0.00012664,2]
[420236350,1775838636231,-500.0,0.00012664,2]
[420236351,1775838636246,-500.0,0.00012664,2]
[420236352,1775838636266,-151.0,0.00012664,2]
[420236353,1775838636276,-500.0,0.00012664,2]
[420236354,1775838636288,-151.0,0.00012664,2]
[420236355,1775838636312,-500.0,0.00012664,2]
[420236356,1775838636321,-151.0,0.00012664,2]
[420236357,1775838636334,-500.0,0.00012664,2]
[420236358,1775838636362,-151.0,0.00012664,2]
[420236359,1775838636376,-500.0,0.00012664,2]
[420236360,1775838636405,-200.0,0.00012664,2]
[420236361,1775838636420,-151.0,0.00012664,2]
[420236362,1775838636438,-500.0,0.00012664,2]
[420236363,1775838636448,-151.0,0.00012664,2]
[420236364,1775838636458,-500.0,0.00012664,2]
[420236365,1775838636476,-500.0,0.00012664,2]
[420236366,1775838636487,-151.0,0.00012664,2]
[420236367,1775838636498,-151.0,0.00012664,2]
[420236368,1775838636511,-500.0,0.00012664,2]
[420236369,1775838636520,-500.0,0.00012664,2]
[420236370,1775838636530,-151.0,0.00012664,2]
[420236371,1775838636541,-151.0,0.00012664,2]
[420236372,1775838636551,-500.0,0.00012664,2]
[420236373,1775838636562,-151.0,0.00012664,2]
[420236374,1775838636572,-151.0,0.00012664,2]
[420236375,1775838636582,-500.0,0.00012664,2]
[420236376,1775838636593,-151.0,0.00012664,2]
[420236377,1775838636605,-500.0,0.00012664,2]
[420236378,1775838636616,-151.0,0.00012664,2]
[420236379,1775838636626,-151.0,0.00012664,2]
[420236380,1775838636636,-500.0,0.00012664,2]
[420236381,1775838636649,-151.0,0.00012664,2]
[420236382,1775838636660,-151.0,0.00012664,2]
[420236383,1775838636670,-500.0,0.00012664,2]
[420236384,1775838636683,-151.0,0.00012664,2]
[420236385,1775838636697,-151.0,0.00012664,2]
[420236386,1775838636707,-500.0,0.00012664,2]
[420236387,1775838636716,-151.0,0.00012664,2]
[420236388,1775838636733,-151.0,0.00012664,2]
[420236389,1775838636745,-500.0,0.00012664,2]
[420236390,1775838636756,-151.0,0.00012664,2]
[420236391,1775838636766,-500.0,0.00012664,2]
[420236392,1775838636791,-151.0,0.00012664,2]
[420236393,1775838636801,-151.0,0.00012664,2]
[420236394,1775838636811,-500.0,0.00012664,2]
[420236395,1775838636840,-151.0,0.00012664,2]
[420236396,1775838636850,-151.0,0.00012664,2]
[420236397,1775838636882,-500.0,0.00012664,2]
[420236398,1775838636891,-151.0,0.00012664,2]
[420236399,1775838636901,-151.0,0.00012664,2]
[420236400,1775838636924,-500.0,0.00012664,2]
[420236401,1775838636936,-151.0,0.00012664,2]
[420236402,1775838636946,-151.0,0.00012664,2]
[420236403,1775838636974,-151.0,0.00012664,2]
[420236404,1775838636986,-151.0,0.00012664,2]
[420236405,1775838636998,-151.0,0.00012664,2]
[420236406,1775838637027,-151.0,0.00012664,2]
[420236407,1775838637042,-151.0,0.00012664,2]
[420236408,1775838637077,-151.0,0.00012664,2]
[420236409,1775838637107,-151.0,0.00012664,2]
[420236410,1775838637127,-1156.41848616,0.00012664,2]
[420236411,1775838637165,-151.0,0.00012664,2]
[420236412,1775838637179,-577.17,0.00012671,2]
[420236413,1775838637219,-600.0,0.000127,4]
[420236414,1775838637235,-12326.6527912,0.0001271,2]
[420236415,1775838637267,-1430.4040998,0.0001271,2]
[420236416,1775838637280,-214.81,0.0001271,2]
[420236417,1775838637305,-2047.79022335,0.0001272,2]
[420236418,1775838637315,-442.90747353,0.0001272,2]
[420236419,1775838637335,-242.73293008,0.00012724,2]
[420236420,1775838637348,-587.16696722,0.00012724,2]
[420236421,1775838637362,-500.0,0.00012724,2]
[420236422,1775838637382,-500.0,0.00012724,2]
[420236423,1775838637391,-500.0,0.00012724,2]
[420236424,1775838637409,-213.45135256,0.00012724,2]
[420236425,1775838637428,-500.0,0.00012724,2]
[420236426,1775838637444,-365.51980634,0.00012724,2]
[420236427,1775838637460,-76365.22455543,0.00012725,2]
[420236428,1775838637482,-5074.93816381,0.00012725,2]
[420236429,1775838637502,-69037.10521746,0.00012725,2]
[420236430,1775838637526,-26277.3442518,0.00012725,2]
[420236431,1775838637540,-11029.6380762,0.00012729,2]
[420236432,1775838637552,-15016.50161516,0.00012793,2]
[420236436,1775838638565,-500.0,0.00012663,2]
[420236437,1775838638580,-1690.42,0.00012793,2]
[420236438,1775838638610,-1305.80323701,0.00012793,2]
[420236439,1775838638633,-1422.23429174,0.00012793,2]
[420236440,1775838638650,-152.77946957,0.000128,2]
[420236441,1775838638663,-1000.0,0.000128,4]
[420236442,1775838638681,-196.20268414,0.000128,2]
[420236443,1775838638695,-835.08194218,0.000128,2]
[420236444,1775838638705,-193.0,0.0001283,2]
[420236445,1775838638716,-1820.12224439,0.0001283,2]
[420236446,1775838638734,-1900.0,0.0001283,2]
[420236447,1775838638758,-1279.87775561,0.0001283,2]
[420236448,1775838638770,-250.0,0.0001283,2]
[420236449,1775838638785,-420.0,0.00012834,2]
[420236450,1775838638797,-1680.0,0.00012856,2]
[420236451,1775838638807,-550.3869963,0.00012873,2]
[420236452,1775838638819,-500.0,0.00012873,2]
[420236453,1775838638835,-500.0,0.00012873,2]
[420236454,1775838638848,-500.0,0.00012873,2]
[420236455,1775838638863,-500.0,0.00012873,2]
[420236456,1775838638874,-500.64655895,0.00012873,2]
[420236457,1775838638890,-500.0,0.00012873,2]
[420236458,1775838638901,-170.63288767,0.00012873,2]
[420236459,1775838638913,-500.0,0.00012873,2]
[420236460,1775838638926,-501.51019132,0.00012873,2]
[420236461,1775838638936,-609.735,0.00012873,2]
[420236462,1775838638946,-500.0,0.00012873,2]
[420236463,1775838638966,-500.0,0.00012873,2]
[420236464,1775838638984,-500.0,0.00012873,2]
[420236465,1775838639020,-500.0,0.00012873,2]
[420236466,1775838639033,-10505.18528153,0.00012885,2]
[420236467,1775838639081,-598.47888008,0.0001289,2]
[420236468,1775838639091,-151.0,0.00012895,2]
[420236469,1775838639121,-171.95277,0.00012895,2]
[420236470,1775838639130,-63083.85653093,0.00012895,2]
[420236471,1775838639155,-3903.83753928,0.00012895,2]
[420236472,1775838639192,-273.0,0.00012663,2]
[420236473,1775838639215,-402.0,0.00012895,2]
[420236516,1775838640537,-1051.74850456,0.00012895,2]
[420236518,1775838640561,-1454.76,0.00012895,2]
[420236519,1775838640582,-371.7040318,0.00012895,2]
[420236520,1775838640597,-469.73578931,0.00012895,2]
[420236521,1775838640623,-974.33676083,0.00012895,2]
[420236522,1775838640634,-248676.643693,0.00012895,2]
[420236523,1775838640646,-222199.3376,0.000129,2]
[420236524,1775838640663,-2500000.0,0.000129,2]
[420236525,1775838640672,-151.0,0.000129,2]
[420236526,1775838640682,-1300.0,0.000129,4]
[420236527,1775838640692,-500.0,0.00012903,2]
[420236529,1775838640708,-158.0,0.00012912,3]
[420236530,1775838640717,-1695.83459488,0.00012935,2]
[420236531,1775838640726,-577.17,0.00012945,2]
[420236532,1775838640735,-598.47888008,0.0001299,2]
[420236533,1775838640747,-300.0028775,0.00012992,2]
[420236534,1775838640756,-15074.85365713,0.00012999,2]
[420236535,1775838640767,-151.0,0.00012999,2]
[420236536,1775838640777,-200.0,0.00012999,2]
[420236537,1775838640787,-175.54166201,0.00012999,2]
[420236538,1775838640800,-200.0,0.00012999,2]
[420236539,1775838640810,-200.0,0.00012999,2]
[420236540,1775838640819,-65319.27722493,0.00013,2]
[420236541,1775838640829,-1164.58,0.00013,2]
[420236542,1775838640841,-291.14,0.00013,2]
[420236543,1775838640850,-291.14,0.00013,2]
[420236544,1775838640859,-291.14,0.00013,2]
[420236545,1775838640868,-291.14,0.00013,2]
[420236546,1775838640877,-250.0,0.00013,2]
[420236547,1775838640889,-2719.25388835,0.00013,15]
[420236548,1775838640898,-150.0,0.00013,2]
[420236549,1775838640907,-166.68,0.00013037,2]
[420236550,1775838640916,-3620.21391383,0.0001305,2]
[420236551,1775838640928,-504.0,0.000131,2]
[420236552,1775838640938,-420.0,0.00013101,2]
[420236553,1775838640947,-420.0,0.00013101,2]
[420236554,1775838640956,-200.0,0.00013129,2]
[420236555,1775838640969,-200.0,0.00013129,2]
[420236556,1775838640979,-200.0,0.00013129,2]
[420236557,1775838640988,-500.0,0.00013177,2]
[420236558,1775838640998,-166.51,0.0001319,2]
[420236559,1775838641012,-2215.04,0.000132,2]
[420236560,1775838641021,-553.76,0.000132,2]
[420236561,1775838641035,-553.76,0.000132,2]
[420236562,1775838641045,-553.76,0.000132,2]
[420236563,1775838641059,-553.76,0.000132,2]
[420236564,1775838641071,-200.0,0.00013212,2]
[420236565,1775838641080,-1286.36407503,0.00013212,2]
[420236566,1775838641092,-281.72626647,0.00013212,2]
[420236567,1775838641110,-577.17,0.00013219,2]
[420236568,1775838641119,-200.0,0.0001326,2]
[420236569,1775838641140,-200.0,0.0001326,2]
[420236570,1775838641153,-200.0,0.0001326,2]
[420236571,1775838641163,-1695.83459488,0.00013305,2]
[420236572,1775838641188,-300.0028775,0.00013356,2]
[420236573,1775838641209,-200.0,0.00013393,2]
[420236574,1775838641219,-200.0,0.00013393,2]
[420236575,1775838641230,-200.0,0.00013393,2]
[420236576,1775838641248,-1000.0,0.00013421,2]
[420236577,1775838641257,-1000.0,0.00013421,2]
[420236578,1775838641268,-1000.0,0.00013421,2]
[420236579,1775838641286,-1000.0,0.00013421,2]
[420236580,1775838641301,-1000.0,0.00013421,2]
[420236581,1775838641313,-1000.0,0.00013421,2]
[420236582,1775838641325,-1000.0,0.00013421,2]
[420236583,1775838641339,-1000.0,0.00013421,2]
[420236584,1775838641350,-160.0,0.00013424,2]
[420236585,1775838641363,-243.056351,0.00013424,2]
[420236586,1775838641382,-326.112703,0.00013424,2]
[420236587,1775838641395,-3240.0,0.00013425,2]
[420236588,1775838641413,-160.0,0.00013425,2]
[420236589,1775838641427,-341.630455,0.00013425,2]
[420236590,1775838641436,-523.260911,0.00013425,2]
[420236591,1775838641449,-500.0,0.00013451,2]
[420236592,1775838641465,-314.64242787,0.00013468,30]
[420236593,1775838641478,-577.17,0.00013493,2]
[420236594,1775838641491,-2000.0,0.00013503,2]
[420236595,1775838641506,-158.0,0.00013518,3]
[420236596,1775838641519,-377.089245,0.0001352,2]
[420236597,1775838641533,-160.0,0.0001352,2]
[420236598,1775838641550,-1751.334801,0.0001352,2]
[420236599,1775838641563,-3342.669603,0.0001352,2]
[420236600,1775838641579,-160.0,0.0001352,2]
[420236601,1775838641594,-470.984655,0.0001352,2]
[420236602,1775838641608,-781.969311,0.0001352,2]
[420236603,1775838641627,-200.0,0.00013527,2]
[420236604,1775838641642,-200.0,0.00013527,2]
[420236605,1775838641662,-200.0,0.00013527,2]
[420236606,1775838641675,-255.0,0.00013547,2]
[420236607,1775838641687,-1695.83459488,0.00013676,2]
[420236608,1775838641712,-166.51,0.00013692,2]
[420236609,1775838641722,-500.0,0.00013698,2]
[420236610,1775838641733,-489.378,0.00013698,2]
[420236612,1775838641751,-518.75523557,0.00013698,2]
[420236614,1775838641761,-500.0,0.00013698,2]
[420236615,1775838641770,-500.0,0.00013698,2]
[420236617,1775838641790,-500.0,0.00013698,2]
[420236619,1775838641807,-500.0,0.00013698,2]
[420236621,1775838641817,-500.0,0.00013698,2]
[420236622,1775838641834,-500.0,0.00013698,2]
[420236623,1775838641852,-500.0,0.00013698,2]
[420236624,1775838641862,-500.0,0.00013698,2]
[420236625,1775838641883,-500.0,0.00013698,2]
[420236626,1775838641906,-500.0,0.00013698,2]
[420236627,1775838641923,-500.0,0.00013698,2]
[420236628,1775838641946,-500.0,0.00013698,2]
[420236629,1775838641960,-500.0,0.00013698,2]
[420236630,1775838641968,-967.9,0.00013698,2]
[420236631,1775838641993,-967.9,0.00013698,2]
[420236632,1775838642006,-967.9,0.00013698,2]
[420236633,1775838642024,-967.9,0.00013698,2]
[420236634,1775838642034,-967.9,0.00013698,2]
[420236635,1775838642048,-967.9,0.00013698,2]
[420236636,1775838642058,-967.9,0.00013698,2]
[420236637,1775838642069,-967.9,0.00013698,2]
[420236638,1775838642079,-967.9,0.00013698,2]
[420236639,1775838642088,-967.9,0.00013698,2]
[420236640,1775838642098,-967.9,0.00013698,2]
[420236641,1775838642115,-967.9,0.00013698,2]
[420236642,1775838642125,-967.9,0.00013698,2]
[420236643,1775838642135,-967.9,0.00013698,2]
[420236644,1775838642147,-967.9,0.00013698,2]
[420236645,1775838642162,-500.0,0.00013698,2]
[420236646,1775838642171,-437.55127796,0.00013698,2]
[420236647,1775838642184,-150.0,0.00013699,2]
[420236648,1775838642199,-150.0,0.00013699,2]
[420236649,1775838642210,-166.66,0.00013699,2]
[420236650,1775838642220,-886.95,0.00013699,2]
[420236651,1775838642239,-200.0,0.00013699,2]
[420236652,1775838642251,-480.95,0.00013699,2]
[420236653,1775838642262,-160.0,0.00013699,2]
[420236654,1775838642279,-800.0,0.00013699,2]
[420236655,1775838642295,-500.0,0.00013699,2]
[420236656,1775838642305,-500.0,0.00013699,2]
[420236657,1775838642323,-1000.0,0.00013699,2]
[420236658,1775838642342,-161.7,0.00013699,2]
[420236659,1775838642355,-150.86482517,0.00013699,2]
[420236660,1775838642365,-500.79446736,0.000137,2]
[420236661,1775838642378,-500.0,0.000137,2]
[420236662,1775838642390,-155.35955319,0.00013707,2]
[420236663,1775838642406,-300.0028775,0.00013719,2]
[420236664,1775838642423,-500.0,0.00013725,2]
[420236665,1775838642437,-158.93,0.00013757,2]
[420236666,1775838642451,-577.21,0.00013767,2]
[420236667,1775838642469,-33047.9748,0.00013796,2]
[420236668,1775838642486,-901.94,0.0001383,2]
[420236669,1775838642506,-152.77946957,0.00013833,2]
[420236670,1775838642531,-166.66,0.00013836,2]
[420236671,1775838642571,-1600.0,0.000139,5]
[420236672,1775838642598,-230.14888502,0.00013922,2]
[420236673,1775838642634,-1500.0,0.00013968,2]
[420236674,1775838642649,-1500.0,0.00013968,2]
[420236675,1775838642675,-1502.00296386,0.00013968,2]
[420236676,1775838642686,-1500.0,0.00013968,2]
[420236677,1775838642705,-1500.0,0.00013968,2]
[420236678,1775838642719,-1500.0,0.00013968,2]
[420236679,1775838642730,-505.18579088,0.00013968,2]
[420236680,1775838642741,-150.0,0.00013973,2]
[420236681,1775838642758,-166.66,0.00013973,2]
[420236682,1775838642771,-275.25610977,0.00013984,2]
[420236683,1775838642785,-201.93472607,0.00013984,2]
[420236684,1775838642799,-500.0,0.00013999,2]
[420236685,1775838642808,-247.04835574,0.00014005,2]
[420236686,1775838642828,-967.9,0.00014005,2]
[420236687,1775838642838,-48791.34891974,0.00014006,2]
[420236688,1775838642868,-151.0,0.00014006,2]
[420236689,1775838642884,-1695.83459488,0.00014047,2]
[420236690,1775838642921,-1000.0,0.00014082,2]
[420236691,1775838642948,-1800.0,0.00014082,2]
[420236692,1775838642967,-500.0,0.00014082,2]
[420236693,1775838642981,-300.0028775,0.00014083,2]
[420236694,1775838642998,-1600.0,0.00014092,2]
[420236695,1775838643016,-587.0,0.00014094,2]
[420236696,1775838643025,-331.440479,0.00014095,7]
[420236697,1775838643037,-465.859712,0.00014096,7]
[420236698,1775838643049,-12326.6527912,0.00014109,2]
[420236699,1775838643065,-166.66,0.0001411,2]
[420236700,1775838643074,-158.0,0.00014124,3]
[420236701,1775838643084,-1631.0,0.00014142,2]
[420236702,1775838643098,-160.0,0.0001415,2]
[420236703,1775838643110,-166.51,0.00014195,2]
[420236704,1775838643120,-171.404202,0.00014196,7]
[420236705,1775838643129,-2388.18382,0.00014196,2]
[420236706,1775838643138,-963.377705,0.00014196,2]
[420236707,1775838643150,-306.0,0.000142,2]
[420236716,1775838643483,-313.0,0.000142,2]
[420236717,1775838643494,-2676.05533861,0.0001424,30]
[420236718,1775838643515,-166.66,0.00014247,2]
[420236719,1775838643524,-150.0,0.00014247,2]
[420236720,1775838643535,-500.0,0.00014273,2]
[420236721,1775838643553,-174.4497,0.000143,2]
[420236722,1775838643566,-196.20268413,0.0001435,2]
[420236723,1775838643578,-587.0,0.00014383,2]
[420236724,1775838643597,-379.0,0.00014383,2]
[420236725,1775838643608,-166.66,0.00014384,2]
[420236726,1775838643621,-886.95,0.00014384,2]
[420236727,1775838643633,-39439.2849246,0.00014392,2]
[420236728,1775838643642,-2461.0449103,0.00014396,2]
[420236729,1775838643658,-1695.83459488,0.00014417,2]
[420236730,1775838643667,-373.0,0.00014419,2]
[420236731,1775838643680,-300.0028775,0.00014446,2]
[420236732,1775838643691,-155.35955319,0.00014469,2]
[420236733,1775838643704,-180.71661867,0.00014478,2]
[420236734,1775838643716,-711.65309971,0.00014498,2]
[420236735,1775838643726,-1500.0,0.00014516,2]
[420236736,1775838643739,-1500.0,0.00014516,2]
[420236737,1775838643752,-1500.0,0.00014516,2]
[420236738,1775838643764,-1500.0,0.00014516,2]
[420236739,1775838643773,-373.0,0.00014531,2]
[420236740,1775838643785,-500.0,0.00014547,2]
[420236741,1775838643799,-214.81,0.0001461,2]
[420236742,1775838643811,-373.0,0.00014622,2]
[420236743,1775838643823,-373.0,0.00014684,2]
[420236744,1775838643833,-500.0,0.00014699,2]
[420236745,1775838643842,-500.0,0.00014699,2]
[420236746,1775838643856,-500.0,0.00014699,2]
[420236747,1775838643867,-500.0,0.00014699,2]
[420236748,1775838643876,-500.0,0.00014699,2]
[420236749,1775838643886,-162.0,0.0001472,2]
[420236750,1775838643895,-373.0,0.00014723,2]
[420236751,1775838643905,-158.0,0.0001473,3]
[420236752,1775838643918,-433.0,0.00014742,2]
[420236753,1775838643928,-253.29,0.00014756,2]
[420236754,1775838643937,-153.83,0.00014756,2]
[420236755,1775838643947,-8800.0939613,0.00014764,2]
[420236756,1775838643956,-373.0,0.00014765,2]
[420236757,1775838643965,-549.1333449,0.00014768,2]
[420236758,1775838643974,-373.0,0.00014775,2]
[420236759,1775838643984,-1695.83459488,0.00014788,2]
[420236760,1775838643993,-300.0028775,0.0001481,2]
[420236761,1775838644003,-168.0,0.00014826,2]
[420236762,1775838644012,-373.0,0.0001483,2]
[420236763,1775838644022,-153.83,0.00014847,2]
[420236764,1775838644031,-373.0,0.00014848,2]
[420236765,1775838644041,-152.77946957,0.00014867,2]
[420236766,1775838644052,-373.0,0.00014902,2]
[420236767,1775838644061,-3590.15373029,0.00014904,2]
[420236768,1775838644071,-504.0,0.00014908,3]
[420236769,1775838644084,-1264.0,0.00014916,2]
[420236770,1775838644096,-926.0,0.00014916,2]
[420236771,1775838644106,-1218.0,0.00014916,2]
[420236772,1775838644128,-622.0,0.00014916,2]
[420236773,1775838644137,-3524.0,0.00014916,2]
[420236774,1775838644146,-711.65309971,0.00014965,2]
[420236775,1775838644171,-500.0,0.00014973,2]
[420236776,1775838644180,-500.0,0.00014973,2]
[420236777,1775838644190,-500.0,0.00014973,2]
[420236778,1775838644209,-500.0,0.00014973,2]
[420236779,1775838644222,-500.0,0.00014973,2]
[420236780,1775838644231,-500.0,0.00014973,2]
[420236781,1775838644243,-519.13081985,0.00014973,2]
[420236782,1775838644252,-500.0,0.00014973,2]
[420236783,1775838644263,-500.0,0.00014973,2]
[420236784,1775838644273,-500.0,0.00014973,2]
[420236785,1775838644282,-500.0,0.00014973,2]
[420236786,1775838644293,-500.0,0.00014973,2]
[420236787,1775838644305,-500.0,0.00014973,2]
[420236788,1775838644315,-500.0,0.00014973,2]
[420236789,1775838644325,-500.0,0.00014973,2]
[420236790,1775838644338,-500.0,0.00014973,2]
[420236791,1775838644349,-500.0,0.00014973,2]
[420236792,1775838644358,-500.0,0.00014973,2]
[420236793,1775838644373,-500.0,0.00014973,2]
[420236794,1775838644382,-1138.28964567,0.00014995,2]
[420236795,1775838644390,-151.0,0.00014997,2]
[420236796,1775838644402,-406.01852309,0.00014999,2]
[420236797,1775838644413,-500.0,0.00014999,2]
[420236798,1775838644427,-967.9,0.00014999,2]
[420236799,1775838644437,-237285.51,0.00015,2]
[420236800,1775838644450,-1352.0,0.00015,2]
[420236801,1775838644467,-196.0,0.00015,2]
[420236802,1775838644476,-200.0,0.00015,2]
[420236803,1775838644487,-300.0,0.00015,2]
[420236804,1775838644496,-678.52,0.00015,2]
[420236805,1775838644514,-151.0,0.00015,2]
[420236806,1775838644523,-886.15957215,0.00015,2]
[420236807,1775838644534,-2000.0,0.00015003,2]
[420236808,1775838644548,-1570.0,0.0001504,2]
[420236809,1775838644560,-886.95,0.00015068,2]
[420236810,1775838644570,-225.0,0.00015068,2]
[420236811,1775838644581,-494.32809361,0.00015068,2]
[420236812,1775838644596,-1577.0,0.00015078,2]
[420236813,1775838644609,-500.0,0.00015078,2]
[420236814,1775838644618,-500.0,0.00015078,2]
[420236815,1775838644631,-350.0,0.00015078,2]
[420236816,1775838644646,-150.0,0.00015078,2]
[420236817,1775838644656,-496.0,0.0001508,2]
[420236818,1775838644671,-1695.83459488,0.00015159,2]
[420236819,1775838644688,-300.0028775,0.00015173,2]
[420236820,1775838644697,-356.0,0.00015187,2]
[420236821,1775838644719,-356.0,0.00015228,2]
[420236822,1775838644733,-155.35955319,0.00015231,2]
[420236823,1775838644750,-158.0,0.00015336,3]
[420236824,1775838644777,-162.0,0.0001536,2]
[420236825,1775838644788,-178.15044173,0.00015403,2]
[420236826,1775838644832,-711.65309971,0.00015433,2]
[420236827,1775838644852,-172.349049,0.00015438,7]
[420236828,1775838644891,-242.24705,0.00015438,7]
[420236829,1775838644918,-1000.0,0.00015452,2]
[420236830,1775838644928,-1800.0,0.00015452,2]
[420236831,1775838644940,-214.81,0.00015464,2]
[420236832,1775838644959,-823.0,0.00015477,2]
[420236833,1775838644971,-202.8847,0.000155,2]
[420236834,1775838644984,-300.0,0.000155,5]
[420236835,1775838645011,-1600.0,0.00015501,2]
[420236836,1775838645021,-2671.61,0.00015507,2]
[420236837,1775838645036,-12326.6527912,0.00015508,2]
[420236838,1775838645058,-151.0,0.00015509,2]
[420236839,1775838645068,-967.9,0.00015511,2]
[420236840,1775838645084,-1001.24708237,0.00015521,2]
[420236841,1775838645100,-500.0,0.00015521,2]
[420236842,1775838645110,-263.86245351,0.00015521,2]
[420236843,1775838645120,-539.20373019,0.00015521,2]
[420236844,1775838645134,-1001.32745538,0.00015521,2]
[420236845,1775838645143,-1000.0,0.00015521,2]
[420236846,1775838645152,-1000.0,0.00015521,2]
[420236847,1775838645162,-1000.0,0.00015521,2]
[420236848,1775838645171,-1000.0,0.00015521,2]
[420236849,1775838645181,-1000.0,0.00015521,2]
[420236850,1775838645190,-356.0,0.00015524,2]
[420236851,1775838645199,-1695.83459488,0.00015529,2]
[420236852,1775838645209,-300.0028775,0.00015537,2]
[420236853,1775838645218,-1241.855586,0.00015548,2]
[420236854,1775838645227,-500.956406,0.00015548,2]
[420236855,1775838645236,-356.0,0.00015582,2]
[420236856,1775838645245,-177.15302889,0.00015599,2]
[420236857,1775838645255,-55501.3579848,0.000156,2]
[420236858,1775838645266,-300.0,0.000156,5]
[420236859,1775838645276,-208.85233043,0.00015608,2]
[420236860,1775838645286,-300.0,0.000157,5]
[420236861,1775838645296,-168.0,0.00015724,2]
[420236862,1775838645305,-886.95,0.00015753,2]
[420236863,1775838645317,-1819.59,0.000158,2]
[420236864,1775838645328,-2872.43,0.000158,2]
[420236865,1775838645337,-895.7,0.000158,2]
[420236866,1775838645347,-1979.23,0.000158,2]
[420236867,1775838645360,-1979.23,0.000158,2]
[420236868,1775838645371,-1247.02,0.000158,2]
[420236869,1775838645381,-300.0,0.000158,5]
[420236870,1775838645399,-356.0,0.00015816,2]
[420236871,1775838645412,-356.0,0.00015838,2]
[420236872,1775838645422,-2000.0,0.0001589,2]
[420236873,1775838645438,-2671.61,0.00015895,2]
[420236874,1775838645453,-11374.493971,0.000159,2]
[420236875,1775838645468,-30000.0,0.000159,2]
[420236876,1775838645478,-152.77946957,0.000159,2]
[420236877,1775838645514,-150.0,0.000159,2]
[420236878,1775838645599,-179.36557192,0.000159,2]
[420236879,1775838645744,-150.0,0.000159,2]
[420236880,1775838645783,-775.0,0.000159,5]
[420236881,1775838645803,-300.0028775,0.000159,2]
[420236884,1775838645838,-711.65309971,0.000159,2]
[420236886,1775838645855,-150.0,0.000159,2]
[420236889,1775838645873,-196.20268413,0.000159,2]
[420236890,1775838645885,-1695.83459488,0.000159,2]
[420236892,1775838645902,-2000.0,0.000159,2]
[420236894,1775838645931,-356.0,0.00015918,2]
[420236896,1775838645948,-158.0,0.00015942,3]
[420236897,1775838645969,-6592.16836269,0.00015948,3]